Cogmind - Beta 15 @@@ ROGUE MODE // 2025.07.07 @ 01:53:48 Player: Moonlit Result: Destroyed by 6A-8D9(R) with Subdweller Laser Performance ------------- Evolutions (0) 0 Regions Visited (2) 400 Robots Destroyed (34) 170 Value Destroyed (375) 375 Prototype IDs (2) 40 Alien Tech Used (0) 0 Bonus (0) 0 TOTAL SCORE: 985 Bonus ------- None Cogmind --------- Core Integrity 0/250 Matter 300/300 Energy 248/250 System Corruption 1% Temperature Cool (7) Movement Walking (120) Location -10/Subcaves Parts ------- > --- POWER (1) -------- Ion Engine > --- PROPULSION (2) --- Aluminum Leg > --- UTILITY (2) ------ Sensor Array Signal Interpreter > --- WEAPON (2) ------- Light Assault Rifle > --- INVENTORY (5) ---- Huge Storage Unit Light Armor Plating Scrap Shield Scrap Shield Fragment (46) Peak State ------------ > --- POWER ------------ Ion Engine > --- PROPULSION ------- Aluminum Leg Aluminum Leg > --- UTILITY ---------- Small Storage Unit Improved Terrain Scanner > --- WEAPON ----------- Medium Laser Medium Laser > --- INVENTORY -------- Light Assault Rifle [Rating: 9] Favorites ----------- Power Ion Engine Engine Ion Engine Propulsion Aluminum Leg Leg Aluminum Leg Utility Structural Scanner Device Structural Scanner Storage Small Storage Unit Processor Signal Interpreter Protection Light Armor Plating Weapon Medium Laser Energy Gun Medium Laser Ballistic Gun Light Assault Rifle Build | -11 -10 -10 ------- Run | Yrd Mat Sub Slots Evolved . | . . . Power . | . . . Propulsion . | . . . Utility . | . . . Weapon . | . . . Parts Attached 18 | 7 8 3 Power 2 | 1 1 . Engine 2 | 1 1 . Core . | . . . Reactor . | . . . Propulsion 5 | 2 2 1 Treads . | . . . Leg 5 | 2 2 1 Wheel . | . . . Hover . | . . . Flight . | . . . Utility 8 | 2 5 1 Device 3 | 1 1 1 Storage 1 | 1 . . Processor 3 | . 3 . Hackware . | . . . Protection 1 | . 1 . Artifact . | . . . Weapon 3 | 2 . 1 Energy Gun 2 | 2 . . Energy Cannon . | . . . Ballistic Gun 1 | . . 1 Ballistic Cannon . | . . . Launcher . | . . . Special Weapon . | . . . Impact Weapon . | . . . Slashing Weapon . | . . . Piercing Weapon . | . . . Special Melee Weapon . | . . . Unidentified Prototypes . | . . . Parts Lost 4 | . . 4 Power . | . . . Propulsion 2 | . . 2 Utility . | . . . Weapon 2 | . . 2 Highest Loss Streak 2 | . . 2 To Critical Strikes . | . . . Average Backups 3 | . 4 3 Power . | . . . Propulsion . | . 1 . Utility 1 | . 1 3 Weapon . | . . . Tool/Special . | . . . Unused Backups 6 | . 4 2 Power . | . . . Propulsion . | . . . Utility 5 | . 3 2 Weapon 1 | . 1 . Tool/Special . | . . . Average Slot Usage (%) 98 | . 98 95 Engine 14 | . 14 14 Leg 27 | . 26 27 Device 13 | . 12 13 Storage 5 | . 7 . Processor 8 | . 7 14 Energy Gun 24 | . 28 13 Ballistic Gun 2 | . . 10 Peak Build Rating 9 | 9 9 7 Average Rating 6 | 5 7 6 On Entrance 5 | . 9 7 Naked Turns . | . . . Heaviest Build 17 | 15 17 10 Greatest Support 20 | 20 20 20 Greatest Overweight (x) 1 | 1 1 . Average Overweight (x) . | . . . Largest Inventory Capacity 8 | 8 8 5 Average Capacity 6 | 7 6 5 Most Carried 7 | 2 7 5 Average Carried 3 | . 4 4 Final Capacity 8 | 8 5 5 Final Carried 5 | 1 5 5 Class Distribution -------------------- 86% | Mutant 13% | Scavenger-Mutant Dominant Class ---------------- Mutant | -10/Materials Scavenger-Mutant | -10/Subcaves Resources | -11 -10 -10 ----------- Run | Yrd Mat Sub Matter Collected 464 | 260 139 65 Remotely . | . . . Salvage Created 977 | 231 746 . Parts 57 | 17 40 . Haulers Intercepted 1 | . 1 . Recyclers Shooed 2 | . 2 . Parts Field Recycled . | . . . Retrieved Matter . | . . . Parts Self-Destructed 7 | . . 7 Prevented . | . . . Kills | -11 -10 -10 ------- Run | Yrd Mat Sub Combat Hostiles Destroyed 11 | . 11 . Guns 10 | . 10 . Classes Destroyed 9 | 3 6 . Worker 7 | 2 5 . Builder 3 | . 3 . Tunneler 6 | 5 1 . Hauler 1 | . 1 . Recycler 3 | 1 2 . Operator 1 | . 1 . Watcher 2 | . 2 . Swarmer 6 | . 6 . Grunt 5 | . 5 . Best Kill Streak 8 | 6 8 . Combat Bots Only 3 | . 3 . Max Kills in Single Turn 1 | 1 1 . Gunslinging . | . . . Exploded . | . . . Melee . | . . . Uniques/NPCs Destroyed . | . . . Combat | -11 -10 -10 -------- Run | Yrd Mat Sub Hostile Shots Fired 112 | . 61 51 Missed 40 | . 21 19 Hits 72 | . 40 32 Projectile 72 | . 40 32 Critical Strikes 2 | . . 2 Damage Taken 866 | . 452 414 Core 260 | . 88 172 Absorbed by Shields . | . . . Core Remaining (%) 100 | 100 . . Volleys Fired 90 | 16 64 10 Largest 2 | 2 2 2 Hottest 100 | 100 100 100 Shots Fired 158 | 29 116 13 Gun 158 | 29 116 13 Cannon . | . . . Launcher . | . . . Special . | . . . Kinetic 3 | . . 3 Thermal 155 | 29 116 10 Explosive . | . . . Electromagnetic . | . . . Robot Hit Streak 12 | 12 10 1 Robot Miss Streak 6 | 1 5 6 Penetration Max . | . . . Secondary Targets 2 | . 2 . Max Gunslinging Chain 1 | . 1 . Shots Hit Robots 94 | 23 68 3 Core Hits 44 | 8 35 1 Critical Kills . | . . . Critical Parts Destroyed . | . . . Critical Strikes 12 | 2 10 . Burn 12 | 2 10 . Melee Attacks . | . . . Impact . | . . . Slashing . | . . . Piercing . | . . . Sneak Attacks . | . . . Combat Hostiles . | . . . Follow-up Attacks . | . . . Damage Inflicted 1197 | 309 860 28 Guns 1197 | 309 860 28 Cannons . | . . . Explosions . | . . . Melee . | . . . Ramming . | . . . Kinetic 15 | . . 15 Thermal 1182 | 309 860 13 Explosive . | . . . Electromagnetic . | . . . Impact . | . . . Slashing . | . . . Piercing . | . . . Highest Corruption 1 | . 1 1 Average Corruption 1 | . 1 1 Corruption Purged . | . . . Corruption Blocked . | . . . Effects 8 | . 3 5 Message Errors 3 | . 1 2 Matter Fused 4 | . 2 2 Heat Flow Errors 1 | . . 1 Overload Shots . | . . . Overflow Damage . | . . . Projectiles . | . . . Explosions . | . . . Melee . | . . . Knockbacks . | . . . Impact . | . . . Kinetic . | . . . Secondary . | . . . Self-Inflicted Damage . | . . . Shots . | . . . Rammed . | . . . Targets Rammed . | . . . Kicked . | . . . Crushed . | . . . Highest Temperature 477 | 477 415 122 Average Temperature 150 | 221 135 65 Received Heat Transfer 276 | . 198 78 Effects 8 | 5 3 . Shutdowns 3 | 2 1 . Energy Bleed 1 | . 1 . Interference 3 | 2 1 . Short Circuit 1 | 1 . . Siege Activations . | . . . Martial Activations . | . . . Shielding Activations . | . . . Robots Disrupted . | . . . Combat Hostiles . | . . . Robots Corrupted . | . . . Combat Hostiles . | . . . Parts Fried . | . . . Impact Corruptions . | . . . Robots Melted 2 | 1 1 . Combat Hostiles 1 | . 1 . Parts Melted 14 | 5 9 . Heat Transferred 4403 | 1073 3293 37 Parts Sabotaged . | . . . Parts Stolen . | . . . Parts Stripped . | . . . Power Chain Reactions . | . . . Alert | -11 -10 -10 ------- Run | Yrd Mat Sub Maximum Alert Level . | . . . Low Security (%) 100 | 100 100 . Level 1 . | . . . Level 2 . | . . . Level 3 . | . . . Level 4 . | . . . Level 5 . | . . . High Security . | . . . Max Security . | . . . Peak Influence 127 | 10 127 . Initial . | . . . Average 36 | 2 43 . Influence Increases 483 | 40 383 60 Destroy 0b10 Robot/C 220 | . 220 . Destroy 0b10 Robot/NC 115 | 40 75 . Destroy Leader 56 | . 56 . Successful Hack 31 | . 31 . Destroy Structure 1 | . 1 . Lose Combat Pursuer 60 | . . 60 Influence Decreases 483 | 40 317 126 Entered New Map 33 | . . 33 Time Decay 430 | 40 317 73 Lost Part 20 | . . 20 Squads Dispatched 2 | . 2 . Investigation 1 | . 1 . Extermination . | . . . Reinforcement 1 | . 1 . Assault . | . . . Garrison . | . . . Intercept . | . . . Searches Triggered . | . . . Construction Impeded . | . . . Haulers Reinforced . | . . . Active Scanning Responses . | . . . Cargo Convoy Interrupts . | . . . Stealth | -11 -10 -10 --------- Run | Yrd Mat Sub Distress Signals . | . . . Communications Jammed . | . . . Distress Signals . | . . . Times Spotted 30 | . 16 14 Peak Tracking Total 7 | . 3 7 Tactical Retreats 2 | . . 2 Traps | -11 -10 -10 ------- Run | Yrd Mat Sub Traps Triggered 2 | . 2 . Indirectly . | . . . Trap Hack Attempts . | . . . Triggered . | . . . Disarmed . | . . . Reprogrammed . | . . . Reused . | . . . Traps Extracted . | . . . Installed . | . . . Triggered . | . . . Machines | -11 -10 -10 ---------- Run | Yrd Mat Sub Machines Disabled . | . . . Max in Single Turn . | . . . Machines Repaired . | . . . Machines Dismantled . | . . . Machines Sabotaged . | . . . Overloaded Fab Kills . | . . . Hacking | -11 -10 -10 --------- Run | Yrd Mat Sub Machines Accessed 7 | . 7 . Terminals 6 | . 6 . Fabricators . | . . . Repair Stations . | . . . Recycling Units 1 | . 1 . Scanalyzers . | . . . Garrison Access . | . . . Total Hacks 23 | . 23 . Successful 11 | . 11 . Failed 12 | . 12 . Catastrophic 1 | . 1 . Database Lockouts . | . . . Manual . | . . . Terminals 22 | . 22 . Fabricators . | . . . Repair Stations . | . . . Recycling Units 1 | . 1 . Scanalyzers . | . . . Garrison Access . | . . . Terminal Hacks 10 | . 10 . Record 1 | . 1 . Prototype ID Bank 1 | . 1 . Alert Level 1 | . 1 . Locate Traps 1 | . 1 . Dispatch Records 1 | . 1 . Transport Status 1 | . 1 . Investigation Status 1 | . 1 . Hauler Manifests 1 | . 1 . Registered Components 1 | . 1 . Zone Layout 1 | . 1 . Fabricator Hacks . | . . . Repair Station Hacks . | . . . Recycling Unit Hacks 1 | . 1 . Report Inventory 1 | . 1 . Scanalyzer . | . . . Garrison Access Hacks . | . . . Unauthorized Hacks . | . . . Terminals . | . . . Fabricators . | . . . Repair Stations . | . . . Recycling Units . | . . . Scanalyzers . | . . . Garrison Access . | . . . Data Cores Recovered . | . . . Used . | . . . Hacking Detections 4 | . 4 . Full Trace Events 2 | . 2 . Feedback Events . | . . . Feedback Blocked . | . . . Robot Schematics Acquired . | . . . Robots Built . | . . . Authchips . | . . . Time . | . . . Total Robot Build Rating . | . . . Part Schematics Acquired . | . . . Parts Built . | . . . Authchips . | . . . Time . | . . . Total Part Build Rating . | . . . Parts Repaired . | . . . Time . | . . . Parts Recycled . | . . . Recycled Matter . | . . . Retrieved Matter . | . . . Retrieved Components . | . . . Parts Scanalyzed . | . . . Part Schematics Acquired . | . . . Parts Damaged . | . . . Bothacking | -11 -10 -10 ------------ Run | Yrd Mat Sub Used RIF Installer . | . . . Robots Hacked . | . . . Non-combat . | . . . Combat . | . . . Robot Hacks Applied . | . . . Relay Couplers Released . | . . . Fabnet Peak Effective % . | . . . Robots Rewired . | . . . Allies Hacked . | . . . Hacks Repelled . | . . . Allies | -11 -10 -10 -------- Run | Yrd Mat Sub Total Allies . | . . . Largest Group . | . . . Highest-Rated Group . | . . . Highest-Rated Ally . | . . . Total Orders . | . . . Ally Attacks . | . . . Total Damage . | . . . Kills . | . . . Allies Corrupted . | . . . Allies Melted . | . . . Intel | -11 -10 -10 ------- Run | Yrd Mat Sub Active Infowar (turns) 1062 | 16 807 239 Optics 2 | . 2 . Sensors 235 | . . 235 Terrain 140 | 16 124 . Structural 687 | . 683 4 Robot Analysis Total . | . . . Derelict Logs Recovered . | . . . Drone Launches . | . . . Drone Recoveries . | . . . Exploration | -11 -10 -10 ------------- Run | Yrd Mat Sub Turns Passed 1288 | 166 875 247 Spaces Moved 787 | 68 541 178 Core 1 | 1 . . Treads . | . . . Legs 786 | 67 541 178 Wheels . | . . . Hover . | . . . Flight . | . . . Fastest Speed 50 | 50 120 120 Average Speed 124 | 155 122 120 Slowest Speed 190 | 190 190 120 Overloaded Moves . | . . . Propulsion Burnouts . | . . . Robots Hopped . | . . . Potential Cave-ins . | . . . Cave-ins Triggered . | . . . Exploration Rate (%) 29 | 4 76 7 Regions Visited 2 Branch Regions 1 Pre-discovered Areas . | . . . Known Exits Taken 1 | . 1 . Unknown Exits Taken 1 | 1 . . Scrap Searched . | . . . Spaces Dug . | . . . Terrain Destroyed . | . . . Melee . | . . . Projectile . | . . . AOE . | . . . Terrain Rammed . | . . . Walls Destroyed . | . . . Machines Disabled . | . . . Actions | -11 -10 -10 --------- Run | Yrd Mat Sub Total 944 | 100 642 202 Wait 6 | 2 4 . Move 785 | 67 540 178 Hop . | . . . Pick Up 26 | 8 14 4 Fast Attach 1 | . . 1 Attach 15 | 7 4 4 Detach 2 | . 1 1 Swap 5 | . 5 . Drop 14 | . 10 4 Fire 90 | 16 64 10 Melee . | . . . Ram . | . . . Kick . | . . . Crush . | . . . Escape Stasis . | . . . Rewire . | . . . Trap . | . . . Miscellaneous . | . . . Route ------- -11/Scrapyard -10/Materials (discovered 5 exits: *Mat x3 / *Min / *Sub) -10/Subcaves (discovered 1 exit: *Rec) History --------- Turn | Location | Event 45 | -11/Scrapyard | Discovered new exit (range 14) 167 | -11/Scrapyard | Entered Materials 281 | -10/Materials | Discovered new exit (range 11) 313 | -10/Materials | Build established: Mutant 350 | -10/Materials | Discovered new exit (range 6) 491 | -10/Materials | Discovered new exit (range 6) 657 | -10/Materials | Discovered new exit (range 8) 666 | -10/Materials | Identified exit to Materials 799 | -10/Materials | Discovered new exit (range 9) 807 | -10/Materials | Identified exit to Mines 1041 | -10/Materials | Identified exit to Subcaves 1042 | -10/Materials | Entered Subcaves 1125 | -10/Subcaves | Discovered new exit (range 13) 1138 | -10/Subcaves | Identified exit to Recycling 1231 | -10/Subcaves | Ambushed by swarm of Subdwellers 1239 | -10/Subcaves | Core integrity fell below 50% 1268 | -10/Subcaves | Core integrity fell below 20% 1284 | -10/Subcaves | Lost 4 allies 1289 | -10/Subcaves | Destroyed by 6A-8D9(R) with Subdweller Laser Last Messages --------------- OS3VYMTOCJGT System corrupted: Matter fused (-5). Acquired 5 matter. A mess of Twisted Machinery falls from the cavern ceiling. PV-028(R) comes tumbling into view. Med. Laser destroyed. IX-P0J(R) emerges from the Twisted Machinery. MX-7L9(h): "The Subs are coming!" UM-042(R) emerges from the Twisted Machinery. KC-5QE(R) emerges from the Twisted Machinery. X7-U0O(g): "Sorry we're late! Had another grouchy Sub to deal with. Who's the new fellow?" KC-5QE(R) knocked back. MX-7L9(h) suffers critical hit (Destroy). MX-7L9(h) destroyed. 6A-8D9(R) emerges from the Twisted Machinery. IX-P0J(R) destroyed. Q0-4G4(g) destroyed. X7-U0O(g) destroyed. Aluminum Leg destroyed. Map ----- +----------------------------------------------------+ | ?????????????????????????????????????????????????? | | ?????????????????????????????????????????????????? | | ?????????????????????????????????????????????????? | | ?????????????????????????????????????????????????? | | ?????????????????????????????????????????????????? | | ?????????????????????????????????????????????????? | | ?????????????????????????????????????????????????? | | ?????????????????????????????????????????????????? | | ?????????????????????????????????????????????????? | | ?????????????????????????????????????????????????? | | ?????????????????????????????????????????????????? | | ?????????????????????????????????????????????????? | | ?????????????????????????????????????????????????? | | ?????????????????????????????????????????????????? | | ?????????????????????????????????????????????????? | | ?????????????????????????????????????????????????? | | ?????????????????????????????????????????????????? | | ?????????????????????????????????????????????????? | | ??###????????????????????????????????????????????? | | ?## ####?????###??????????########???????????????? | | ## ###?######?????????#" """##??????????????? | | # ### ########### ;#??????????????? | | ########### ;#??????????????? | | % RR ## "##??????????????? | | ## ## ## >#??????????????? | | ### ########## @ % ""##??????????????? | | #?# %#???????## %### "#???????????????? | | ## #????????### ### %"#???????????????? | | ### ##?????????### ###" """#???????????????? | | #####???????????## #########???????????????? | | #??????????????## #####???????????????????? | | #??????????????### ####???????????????????? | | ###???????????????## #####????????????????? | | ##?????????????????## ###???????????????? | | ???????????????????### ## #####????????????? | | ???????????????????### ### ### ^ ###???????????? | | ????????????????????########## ^ ^##???????????? | | ????????????????????####??###??? ^ ###???????????? | | ????????????????????????????????? ####???????????? | | ??????????????????????????????????#??????????????? | | ?????????????????????????????????????????????????? | | ?????????????????????????????????????????????????? | | ?????????????????????????????????????????????????? | | ?????????????????????????????????????????????????? | | ?????????????????????????????????????????????????? | | ?????????????????????????????????????????????????? | | ?????????????????????????????????????????????????? | | ?????????????????????????????????????????????????? | | ?????????????????????????????????????????????????? | | ?????????????????????????????????????????????????? | +----------------------------------------------------+ Best States ------------- Heat Dissipation 25 Energy Generation 10 Energy Capacity 250 Matter Stores 300 Matter Capacity 300 Sight Range 16 Robot Scan Range 14 Terrain Scan Range 16 Terrain Scan Density 10 Armor Coverage 150 Evasion (%) 55 Targeting Accuracy 5 Item Schematics ----------------- None Robot Schematics ------------------ None Fabricated ------------ Nothing Repaired ---------- Nothing Alien Tech Used ----------------- None Achievements -------------- None Challenges ------------ None Game ------ Seed BladeGrenadePod Manual? 0 Play Time 00:25:40 Cumulative 2.8 hours Start 2025.07.07 @ 01:19:30 End 2025.07.07 @ 01:53:48 Sessions 1 Manual Loads 0 Difficulty Rogue Special Mode None Game No. 5 Rogue 5 Adventurer 0 Explorer 0 Win Type - Total 0 Types 0/0/0/0/0/0/0/0/0/0 Lore% 4 Gallery% 4 Achievement% 6 Wizard Run 0 Options --------- Layout 0 ASCII 0 Keyboard 0 Movement Mouse Keybinds 0 Fullscreen 2 Font 24/Smallcaps Map View 38x25 Zoom Use 97% Tactical HUD 0 Map Filters NONE Filters NONE Steam 1 RUN: c03e6a06-62da-41ba-bb12-3e2019104362